fUSD/lending_fUSD_20260512
["ID","MTS","AMOUNT","RATE_DAILY","PERIOD"]
[422089897,1778564832000,-150.0,0.00024135,4]
[422089906,1778564832000,-150.0,0.00024574,4]
[422089896,1778564832000,-150.0,0.00024055,4]
[422089902,1778564832000,-503.0,0.00024397,2]
[422089901,1778564832000,-503.0,0.00024397,2]
[422089905,1778564832000,-150.0,0.00024574,4]
[422089907,1778564832000,-4960.06388517,0.00024632,30]
[422089904,1778564832000,-150.0,0.00024534,4]
[422089899,1778564832000,-150.0,0.00024175,4]
[422089898,1778564832000,-150.0,0.00024135,4]
[422089900,1778564832000,-150.0,0.00024294,4]
[422089895,1778564832000,-150.0,0.00023935,4]
[422089903,1778564832000,-150.0,0.00024414,4]
[422089912,1778564833000,-224.0,0.0002,2]
[422089913,1778564833000,-9776.01,0.00024632,30]
[422089910,1778564833000,-9500.01,0.00024632,30]
[422089909,1778564833000,-500.0,0.00024582,2]
[422089908,1778564833000,-10000.01,0.00024632,30]
[422089911,1778564833000,100166.8130563,0.00027397,120]
[422089929,1778564834000,-150.0,0.00024893,4]
[422089927,1778564834000,-600.0,0.00024876,2]
[422089930,1778564834000,-1499.56,0.00024905,2]
[422089933,1778564834000,-214.0,0.00023,30]
[422089931,1778564834000,172.34480378,0.00027397,120]
[422089932,1778564834000,-152.0,0.00020481,2]
[422089924,1778564834000,-2272.26,0.00024802,7]
[422089928,1778564834000,-188.14,0.00024876,2]
[422089921,1778564834000,-221.69,0.00024658,2]
[422089915,1778564834000,-224.0,0.00022,2]
[422089925,1778564834000,-221.69,0.00024802,7]
[422089926,1778564834000,-613.51,0.00024802,7]
[422089922,1778564834000,-613.51,0.00024658,2]
[422089919,1778564834000,-2272.26,0.00024658,2]
[422089920,1778564834000,-151.39,0.00024658,2]
[422089918,1778564834000,-150.0,0.00024653,4]
[422089917,1778564834000,-224.0,0.00024,2]
[422089916,1778564834000,-224.0,0.00023,2]
[422089914,1778564834000,-224.0,0.00021,2]
[422089923,1778564834000,-150.0,0.00024773,4]
[422089934,1778564834000,-1000.44,0.00024905,2]
[422089942,1778564834000,-500.0,0.00025004,2]
[422089936,1778564834000,-221.69,0.00024946,2]
[422089957,1778564834000,-203.49,0.00025,2]
[422089956,1778564834000,-2196.44,0.00024946,2]
[422089953,1778564834000,-3207.2,0.00023576,2]
[422089935,1778564834000,-2272.26,0.00024946,2]
[422089954,1778564834000,-2196.44,0.00024658,2]
[422089952,1778564834000,-264.58721202,0.00025004,2]
[422089950,1778564834000,-205.10104879,0.00025004,2]
[422089951,1778564834000,-154.58796869,0.00025004,2]
[422089949,1778564834000,-500.0,0.00025004,2]
[422089948,1778564834000,-220.83995528,0.00025004,2]
[422089955,1778564834000,-2196.44,0.00024802,7]
[422089944,1778564834000,-479.31666278,0.00025004,2]
[422089945,1778564834000,-500.0,0.00025004,2]
[422089947,1778564834000,-197.49330724,0.00025004,2]
[422089941,1778564834000,-500.0,0.00025004,2]
[422089943,1778564834000,-500.0,0.00025004,2]
[422089940,1778564834000,-228.53202889,0.00025,2]
[422089939,1778564834000,-624.26181631,0.00025,2]
[422089937,1778564834000,-613.51,0.00024946,2]
[422089938,1778564834000,-151.39,0.00024962,7]
[422089946,1778564834000,-500.0,0.00025004,2]
[422089958,1778564842000,437.3,0.0001841,2]
[422089959,1778564842000,437.3,0.00022353,2]
[422089960,1778564843000,437.3,0.00020381,2]
[422089961,1778564882000,5000.0,0.00022,120]
[422089962,1778564882000,894.09327818,0.000205,120]
[422089963,1778564904000,-594.0,0.0002,2]
[422090284,1778565252000,-364.81562405,0.000205,2]
[422090288,1778565253000,-114.3687519,0.00021,2]
[422090287,1778565253000,-364.81562405,0.00021,2]
[422090286,1778565253000,-114.81562405,0.00021,2]
[422090285,1778565253000,-250.0,0.000205,2]
[422090290,1778565254000,-500.0,0.00022,2]
[422090289,1778565254000,-594.0,0.00022,2]
[422090293,1778565254000,-2637.61017868,0.00023,30]
[422090292,1778565254000,-594.0,0.00023,2]
[422090294,1778565254000,614.2,0.00026892,120]
[422090291,1778565254000,-250.0,0.00022,2]
[422090295,1778565256000,-156.0,0.0002,2]
[422090296,1778565256000,-163.21923189,0.00021,2]
[422090308,1778565257000,-1561.29525378,0.00024092,2]
[422090311,1778565257000,-14646.77,0.00024621,30]
[422090313,1778565257000,-155.19,0.00024658,2]
[422090314,1778565257000,-915.21,0.00024658,2]
[422090315,1778565257000,-5029.35,0.00024658,2]
[422090317,1778565257000,-8613.64,0.00024658,2]
[422090318,1778565257000,-2059.65,0.00024658,2]
[422090316,1778565257000,-156.86,0.00024658,2]
[422090324,1778565257000,-8613.64,0.00024802,7]
[422090320,1778565257000,-800.0,0.000247,9]
[422090319,1778565257000,-164.7,0.00024658,2]
[422090309,1778565257000,-437.3,0.00024324,2]
[422090307,1778565257000,-438.70474622,0.00024092,2]
[422090305,1778565257000,-1429.1,0.00023926,2]
[422090306,1778565257000,-594.0,0.00024,2]
[422090312,1778565257000,-198.62,0.00024658,2]
[422090304,1778565257000,-614.2,0.00023904,2]
[422090303,1778565257000,-200.0,0.00023872,2]
[422090302,1778565257000,-12328.5,0.00023872,2]
[422090299,1778565257000,-698.71831106,0.00023,30]
[422090297,1778565257000,-1200.0,0.00022999,2]
[422090298,1778565257000,-300.0,0.00022999,2]
[422090300,1778565257000,-11323.95151026,0.00023,30]
[422090301,1778565257000,-1549.95,0.00023,30]
[422090310,1778565257000,-400.0,0.000246,8]
[422090321,1778565257000,-1200.0,0.000248,9]
[422090322,1778565257000,-915.21,0.00024802,7]
[422090325,1778565257000,-2059.65,0.00024802,7]
[422090323,1778565257000,-5029.35,0.00024802,7]
[422090351,1778565257000,-1388.79976405,0.00025005,2]
[422090350,1778565257000,-610.15617726,0.00025,2]
[422090349,1778565257000,-4128.27205869,0.00025,2]
[422090346,1778565257000,-6009.87978071,0.00024946,2]
[422090347,1778565257000,-2059.65,0.00024946,2]
[422090343,1778565257000,-915.21,0.00024946,2]
[422090342,1778565257000,-177.56780552,0.00024905,2]
[422090340,1778565257000,-18524.4923387,0.00024905,2]
[422090336,1778565257000,-1300.0,0.00024905,2]
[422090345,1778565257000,-2603.76021929,0.00024946,2]
[422090344,1778565257000,-5029.35,0.00024946,2]
[422090338,1778565257000,-6989.94014646,0.00024905,2]
[422090348,1778565257000,-338.93748963,0.00025,2]
[422090339,1778565257000,-2182.37961044,0.00024905,2]
[422090341,1778565257000,-2040.3589,0.00024905,2]
[422090327,1778565257000,-1600.0,0.000249,9]
[422090328,1778565257000,-19088.85981281,0.00024905,2]
[422090330,1778565257000,-642.29822088,0.00024905,2]
[422090329,1778565257000,-563.8625775,0.00024905,2]
[422090326,1778565257000,-156.86,0.00024886,7]
[422090334,1778565257000,-874.59964105,0.00024905,2]
[422090332,1778565257000,-305.20490765,0.00024905,2]
[422090333,1778565257000,-19500.19154234,0.00024905,2]
[422090335,1778565257000,-2513.7237219,0.00024905,2]
[422090337,1778565257000,-2433.60632184,0.00024905,2]
[422090331,1778565257000,-665.72995843,0.00024905,2]
[422090373,1778565258000,-2059.65,0.00025234,7]
[422090383,1778565258000,-5063.38,0.00025389,2]
[422090377,1778565258000,-156.86,0.00025342,2]
[422090379,1778565258000,-915.21,0.00025378,7]
[422090384,1778565258000,-675.46711756,0.000254,2]
[422090381,1778565258000,-8613.64,0.00025378,7]
[422090382,1778565258000,-2059.65,0.00025378,7]
[422090387,1778565258000,-150.0,0.00025491,4]
[422090389,1778565258000,-5029.35,0.00025523,2]
[422090390,1778565258000,-8613.64,0.00025523,2]
[422090394,1778565258000,-156.86,0.00025571,7]
[422090385,1778565258000,-150.0,0.00025451,4]
[422090386,1778565258000,-150.0,0.00025451,4]
[422090391,1778565258000,-2059.65,0.00025523,2]
[422090392,1778565258000,-417.54,0.00025551,2]
[422090395,1778565258000,-164.7,0.00025571,7]
[422090393,1778565258000,-151.39,0.00025571,2]
[422090396,1778565258000,-675.46711756,0.000256,2]
[422090397,1778565258000,-150.0,0.00025611,4]
[422090374,1778565258000,-150.0,0.00025252,4]
[422090388,1778565258000,-915.21,0.00025523,2]
[422090375,1778565258000,-151.39,0.00025266,30]
[422090358,1778565258000,-150.0,0.00025012,4]
[422090372,1778565258000,-8613.64,0.00025234,7]
[422090352,1778565258000,-344.22427405,0.00025005,2]
[422090353,1778565258000,-2498266.9759619,0.00025005,2]
[422090355,1778565258000,-250.0,0.00025005,2]
[422090356,1778565258000,-150.0,0.00025012,4]
[422090361,1778565258000,-915.21,0.0002509,2]
[422090363,1778565258000,-8613.64,0.0002509,2]
[422090354,1778565258000,-252.535585,0.00025005,2]
[422090359,1778565258000,-150.0,0.00025012,4]
[422090362,1778565258000,-5029.35,0.0002509,2]
[422090401,1778565258000,-2059.65,0.00025667,7]
[422090360,1778565258000,-1200.0,0.00025082,2]
[422090357,1778565258000,-150.0,0.00025012,4]
[422090364,1778565258000,-2059.65,0.0002509,2]
[422090365,1778565258000,-675.46711756,0.000251,2]
[422090366,1778565258000,-294.22,0.000251,7]
[422090367,1778565258000,-156.86,0.00025114,7]
[422090369,1778565258000,-155.19,0.00025205,7]
[422090370,1778565258000,-915.21,0.00025234,7]
[422090378,1778565258000,-150.0,0.00025371,4]
[422090368,1778565258000,-150.0,0.00025132,4]
[422090371,1778565258000,-5029.35,0.00025234,7]
[422090376,1778565258000,-150.0,0.00025288,2]
[422090402,1778565258000,-150.0,0.0002573,4]
[422090380,1778565258000,-5029.35,0.00025378,7]
[422090400,1778565258000,-8613.64,0.00025667,7]
[422090425,1778565258000,-162.28,0.00026082,2]
[422090428,1778565258000,-5029.35,0.00026099,7]
[422090429,1778565258000,-8613.64,0.00026099,7]
[422090432,1778565258000,-151.39,0.00026179,30]
[422090431,1778565258000,-239.78,0.00026154,2]
[422090433,1778565258000,-150.0,0.00026209,4]
[422090430,1778565258000,-675.46711756,0.000261,2]
[422090440,1778565258000,-155.19,0.00026301,2]
[422090434,1778565258000,-915.21,0.00026243,7]
[422090435,1778565258000,-5029.35,0.00026243,7]
[422090422,1778565258000,-582.53,0.00026005,30]
[422090438,1778565258000,-5398.75,0.00026282,60]
[422090439,1778565258000,-437.3,0.00026296,2]
[422090441,1778565258000,-477.88,0.0002631,2]
[422090442,1778565258000,-152.38538152,0.00026329,4]
[422090444,1778565258000,-158.84105338,0.00026329,4]
[422090447,1778565258000,-155.99668748,0.00026338,2]
[422090446,1778565258000,-150.0,0.00026329,4]
[422090448,1778565258000,-1500000.0,0.00026348,2]
[422090445,1778565258000,-158.69225616,0.00026329,4]
[422090443,1778565258000,-150.0,0.00026329,4]
[422090398,1778565258000,-915.21,0.00025667,7]
[422090436,1778565258000,-8613.64,0.00026243,7]
[422090421,1778565258000,-150.0,0.0002597,4]
[422090437,1778565258000,-642.86150088,0.00026273,2]
[422090420,1778565258000,-2059.65,0.00025955,2]
[422090399,1778565258000,-5029.35,0.00025667,7]
[422090424,1778565258000,-16384.31,0.00026042,2]
[422090414,1778565258000,-150.0,0.0002589,4]
[422090404,1778565258000,-477.88,0.00025762,2]
[422090403,1778565258000,-155.19,0.00025753,7]
[422090405,1778565258000,-156.86,0.00025799,2]
[422090406,1778565258000,-915.21,0.00025811,2]
[422090410,1778565258000,-4670.69954828,0.00025849,2]
[422090409,1778565258000,-2059.65,0.00025811,2]
[422090412,1778565258000,-151.39,0.00025875,7]
[422090408,1778565258000,-8613.64,0.00025811,2]
[422090407,1778565258000,-5029.35,0.00025811,2]
[422090411,1778565258000,-150.0,0.0002585,4]
[422090413,1778565258000,-150.0,0.0002589,4]
[422090415,1778565258000,-2000.0,0.000259,9]
[422090417,1778565258000,-915.21,0.00025955,2]
[422090426,1778565258000,-150.0,0.00026089,4]
[422090427,1778565258000,-915.21,0.00026099,7]
[422090419,1778565258000,-8613.64,0.00025955,2]
[422090416,1778565258000,-675.46711756,0.000259,2]
[422090418,1778565258000,-5029.35,0.00025955,2]
[422090423,1778565258000,-477.88,0.00026036,2]
[422090492,1778565259000,-1373.1,0.00026486,2]
[422090490,1778565259000,-151.39,0.00026484,2]
[422090488,1778565259000,-1373.1,0.00026477,2]
[422090486,1778565259000,-151.05,0.00026474,7]
[422090484,1778565259000,-5742.42,0.00026466,7]
[422090480,1778565259000,-1373.1,0.00026459,2]
[422090481,1778565259000,-411.93,0.00026459,2]
[422090476,1778565259000,-411.93,0.00026448,7]
[422090478,1778565259000,-5742.42,0.00026451,2]
[422090483,1778565259000,-168.21,0.00026465,30]
[422090491,1778565259000,-164.7,0.00026484,2]
[422090485,1778565259000,-1373.1,0.00026468,7]
[422090495,1778565259000,-1373.1,0.00026495,7]
[422090512,1778565259000,-168.21,0.00026538,7]
[422090489,1778565259000,-5742.42,0.00026482,7]
[422090500,1778565259000,-1373.1,0.00026504,7]
[422090498,1778565259000,-168.21,0.00026502,2]
[422090496,1778565259000,-5742.42,0.00026497,2]
[422090493,1778565259000,-151.05,0.00026488,2]
[422090494,1778565259000,-5742.42,0.0002649,2]
[422090499,1778565259000,-151.05,0.00026503,2]
[422090502,1778565259000,-1373.1,0.00026512,2]
[422090504,1778565259000,-151.05,0.00026517,7]
[422090503,1778565259000,-5742.42,0.00026513,7]
[422090501,1778565259000,-5742.42,0.00026505,7]
[422090487,1778565259000,-5742.42,0.00026474,2]
[422090505,1778565259000,-5742.42,0.00026521,2]
[422090497,1778565259000,-294.22,0.000265,7]
[422090482,1778565259000,-151.05,0.0002646,2]
[422090454,1778565259000,-411.93,0.00026375,2]
[422090477,1778565259000,-1373.1,0.0002645,7]
[422090513,1778565259000,-155.19,0.00026538,2]
[422090449,1778565259000,-504.16185047,0.00026373,2]
[422090451,1778565259000,-501.92255243,0.00026373,2]
[422090450,1778565259000,-153.69931528,0.00026373,2]
[422090452,1778565259000,-500.0,0.00026373,2]
[422090453,1778565259000,-500.0,0.00026373,2]
[422090456,1778565259000,-5029.35,0.00026388,2]
[422090457,1778565259000,-8613.64,0.00026388,2]
[422090459,1778565259000,-411.93,0.00026396,2]
[422090458,1778565259000,-168.21,0.00026393,2]
[422090455,1778565259000,-411.93,0.00026385,7]
[422090465,1778565259000,-1373.1,0.00026423,2]
[422090460,1778565259000,-60670.9343866,0.000264,2]
[422090462,1778565259000,-411.93,0.00026406,2]
[422090464,1778565259000,-411.93,0.00026417,7]
[422090461,1778565259000,-1373.1,0.00026406,2]
[422090463,1778565259000,-1373.1,0.00026414,7]
[422090467,1778565259000,-411.93,0.00026427,7]
[422090466,1778565259000,-1205.91,0.00026423,2]
[422090468,1778565259000,-5742.42,0.00026428,2]
[422090471,1778565259000,-5742.42,0.00026435,7]
[422090470,1778565259000,-1373.1,0.00026432,2]
[422090474,1778565259000,-5742.42,0.00026443,2]
[422090469,1778565259000,-168.21,0.00026429,7]
[422090472,1778565259000,-411.93,0.00026438,2]
[422090473,1778565259000,-1373.1,0.00026441,7]
[422090475,1778565259000,-219.61,0.00026447,2]
[422090479,1778565259000,-5742.42,0.00026459,7]
[422090506,1778565259000,-1373.1,0.00026521,7]
[422090550,1778565259000,-151.39,0.00027092,30]
[422090511,1778565259000,-5742.42,0.00026536,2]
[422090541,1778565259000,-219.61,0.00026575,7]
[422090552,1778565259000,-928.89097521,0.00027121,2]
[422090543,1778565259000,-4670.69954828,0.00026699,2]
[422090544,1778565259000,-200.0,0.00026705,2]
[422090546,1778565259000,-155.19,0.00026849,7]
[422090547,1778565259000,-1000.0,0.00026921,2]
[422090549,1778565259000,-152.0,0.00026993,7]
[422090545,1778565259000,-151.39,0.00026788,7]
[422090551,1778565259000,-2000.0,0.00027103,2]
[422090548,1778565259000,-1000.0,0.00026921,2]
[422090554,1778565259000,-1000.0,0.00027121,2]
[422090553,1778565259000,-617.96406145,0.00027121,2]
[422090562,1778565259000,-1500.0,0.00027397,2]
[422090563,1778565259000,-574.81,0.00027397,10]
[422090556,1778565259000,-152.0,0.00027355,7]
[422090510,1778565259000,-151.05,0.00026532,7]
[422090555,1778565259000,-1000.0,0.00027121,2]
[422090558,1778565259000,-152.0,0.00027371,7]
[422090557,1778565259000,-152.0,0.00027355,7]
[422090560,1778565259000,-155.22,0.00027397,2]
[422090561,1778565259000,-164.73,0.00027397,2]
[422090564,1778565259000,-479.01,0.00027397,10]
[422090565,1778565259000,-399.18,0.00027397,10]
[422090568,1778565259000,-9999.99,0.00027397,2]
[422090567,1778565259000,-520.09,0.00027397,2]
[422090566,1778565259000,-150.0,0.00027397,5]
[422090569,1778565259000,-150.99,0.00027397,2]
[422090542,1778565259000,-473.33,0.00026584,2]
[422090538,1778565259000,-151.06,0.00026575,2]
[422090559,1778565259000,-151.4,0.00027397,2]
[422090537,1778565259000,-3352.99,0.00026575,7]
[422090508,1778565259000,-1373.1,0.0002653,2]
[422090533,1778565259000,-500.0,0.00026573,2]
[422090507,1778565259000,-5742.42,0.00026528,7]
[422090509,1778565259000,-5029.35,0.00026532,7]
[422090514,1778565259000,-1373.1,0.00026539,2]
[422090517,1778565259000,-1373.1,0.00026548,7]
[422090515,1778565259000,-5742.42,0.00026544,2]
[422090520,1778565259000,-1373.1,0.00026557,7]
[422090525,1778565259000,-1373.1,0.00026566,2]
[422090527,1778565259000,-5742.42,0.00026567,2]
[422090521,1778565259000,-5742.42,0.00026559,7]
[422090523,1778565259000,-3352.9,0.0002656,7]
[422090518,1778565259000,-5742.42,0.00026552,7]
[422090526,1778565259000,-3352.9,0.00026567,2]
[422090516,1778565259000,-151.05,0.00026546,2]
[422090519,1778565259000,-610.14,0.00026553,7]
[422090535,1778565259000,-155.21,0.00026575,2]
[422090522,1778565259000,-610.14,0.0002656,7]
[422090530,1778565259000,-500.0,0.00026573,2]
[422090532,1778565259000,-500.0,0.00026573,2]
[422090536,1778565259000,-610.23,0.00026575,7]
[422090534,1778565259000,-168.22,0.00026575,30]
[422090539,1778565259000,-5742.58,0.00026575,7]
[422090528,1778565259000,-610.14,0.00026568,2]
[422090529,1778565259000,-501.71906878,0.00026573,2]
[422090531,1778565259000,-500.0,0.00026573,2]
[422090524,1778565259000,-151.05,0.0002656,7]
[422090540,1778565259000,-1373.13,0.00026575,7]
[422090591,1778565260000,-359.19967472,0.00028493,5]
[422090595,1778565260000,-154.71788993,0.00029032,2]
[422090592,1778565260000,-177.0,0.00028871,120]
[422090589,1778565260000,-294.22,0.000283,7]
[422090599,1778565260000,-4670.69954828,0.00030097,2]
[422090594,1778565260000,-31508.86366377,0.00029,7]
[422090597,1778565260000,-4670.69954828,0.00029247,2]
[422090600,1778565260000,-2290.05,0.000301,120]
[422090596,1778565260000,-1753.38,0.000292,14]
[422090598,1778565260000,-500.69433434,0.00029417,18]
[422090603,1778565260000,-198.62,0.0003022,2]
[422090604,1778565260000,-437.3,0.00030239,2]
[422090601,1778565260000,-2000.0,0.00030115,120]
[422090602,1778565260000,-500.0,0.0003012,5]
[422090590,1778565260000,-4670.69954828,0.00028398,2]
[422090606,1778565260000,-294.22,0.000304,7]
[422090593,1778565260000,-177.56780551,0.00028904,2]
[422090588,1778565260000,-437.3,0.00028267,2]
[422090574,1778565260000,-4999.99,0.00027397,2]
[422090582,1778565260000,-1505.44740162,0.00027668,5]
[422090610,1778565260000,-224.0,0.00030616,30]
[422090575,1778565260000,-499.99,0.00027397,2]
[422090570,1778565260000,-720.05,0.00027397,2]
[422090573,1778565260000,-7647.87,0.00027397,2]
[422090571,1778565260000,-3481.83,0.00027397,2]
[422090572,1778565260000,-1577.54,0.00027397,2]
[422090577,1778565260000,-1753.38,0.000274,14]
[422090583,1778565260000,-1500.0,0.00027668,5]
[422090587,1778565260000,-1501.43213113,0.00028216,5]
[422090576,1778565260000,-9999.99,0.00027397,2]
[422090579,1778565260000,-210.98529741,0.00027468,5]
[422090581,1778565260000,-4670.69954828,0.00027548,2]
[422090580,1778565260000,-1500.0,0.00027468,5]
[422090586,1778565260000,-1203.55581159,0.00028016,5]
[422090584,1778565260000,-500.0,0.000278,7]
[422090585,1778565260000,-250.0,0.00027945,5]
[422090578,1778565260000,-198.62,0.00027439,2]
[422090605,1778565260000,-500.0,0.00030367,120]
[422090632,1778565260000,-151.0,0.00032267,7]
[422090607,1778565260000,-152.0,0.00030616,30]
[422090626,1778565260000,-151.0,0.0003182,7]
[422090627,1778565260000,-298.346545,0.0003182,7]
[422090633,1778565260000,-448.648598,0.00032267,7]
[422090631,1778565260000,-448.648598,0.00032267,7]
[422090635,1778565260000,-151.0,0.00032267,7]
[422090636,1778565260000,-151.0,0.00032267,7]
[422090645,1778565260000,-151.0,0.00032742,14]
[422090629,1778565260000,-437.3,0.0003221,5]
[422090644,1778565260000,-17272.9798872,0.00032741,2]
[422090639,1778565260000,-224.0,0.00032616,30]
[422090643,1778565260000,-1008.75464268,0.00032735,2]
[422090641,1778565260000,-156.0,0.00032616,30]
[422090642,1778565260000,-4670.69954828,0.00032645,2]
[422090640,1778565260000,-594.0,0.00032616,30]
[422090638,1778565260000,-151.0,0.00032267,7]
[422090646,1778565260000,-445096.82000458,0.00032745,2]
[422090637,1778565260000,-151.0,0.00032267,7]
[422090634,1778565260000,-448.648598,0.00032267,7]
[422090609,1778565260000,-153.0,0.00030616,30]
[422090630,1778565260000,-448.648598,0.00032267,7]
[422090611,1778565260000,-594.0,0.00030616,30]
[422090613,1778565260000,-610.7460418,0.00030668,5]
[422090615,1778565260000,-234.45886603,0.000308,2]
[422090620,1778565260000,-156.74173103,0.00031616,30]
[422090612,1778565260000,-156.0,0.00030616,30]
[422090614,1778565260000,-250.0,0.00030687,2]
[422090616,1778565260000,-4670.69954828,0.00030946,2]
[422090618,1778565260000,-1000.0,0.000315,7]
[422090617,1778565260000,-1753.38,0.000314,14]
[422090623,1778565260000,-594.0,0.00031616,30]
[422090622,1778565260000,-224.0,0.00031616,30]
[422090619,1778565260000,-246.469525,0.00031571,7]
[422090621,1778565260000,-153.81095167,0.00031616,30]
[422090625,1778565260000,-4670.69954828,0.00031796,2]
[422090624,1778565260000,-156.0,0.00031616,30]
[422090608,1778565260000,-155.0,0.00030616,30]
[422090628,1778565260000,-151.0,0.0003182,7]
[422090647,1778565261000,-313631.53912441,0.00032745,2]
[422090648,1778565261000,-2833.54797628,0.00032745,2]
[422090650,1778565262000,-206.97562405,0.00024905,2]
[422090649,1778565262000,-157.84,0.00024658,2]
[422090657,1778565263000,-364.81562405,0.00024846,2]
[422090656,1778565263000,-364.81562405,0.00024846,2]
[422090655,1778565263000,-10.94135489,0.00025004,2]
[422090654,1778565263000,-230.63601726,0.00025004,2]
[422090653,1778565263000,-123.2382519,0.00024905,2]
[422090652,1778565263000,1984.34,0.00027397,120]
[422090651,1778565263000,-364.81562405,0.00024905,2]
[422090658,1778565264000,-364.81562405,0.00024846,2]
[422090659,1778565264000,-364.81562405,0.00024846,2]
[422090663,1778565264000,-164.81562405,0.00024379,2]
[422090661,1778565264000,-364.81562405,0.00024846,2]
[422090662,1778565264000,-200.0,0.00023641,2]
[422090660,1778565264000,-364.81562405,0.00024846,2]
[422090664,1778565265000,-250.14,0.00023872,2]
[422090665,1778565265000,-1.44437595,0.00024379,2]
[422090666,1778565265000,-113.2312481,0.00024846,2]
[422090668,1778565265000,-186.69,0.00024658,2]
[422090667,1778565265000,1516.83,0.00027397,120]
[422090669,1778565265000,-178.12562405,0.00024846,2]
[422090670,1778565265000,-364.81562405,0.00024846,2]
[422090671,1778565265000,-364.81562405,0.00023793,2]
[422090672,1778565265000,-364.81562405,0.00023793,2]
[422090673,1778565279000,-991.4887519,0.00023793,2]
[422090677,1778565446000,-300.0,0.00023099,2]
[422090678,1778565446000,-1200.0,0.00023099,2]
[422090675,1778565446000,-8771.99,0.000231,2]
[422090676,1778565446000,-1228.02,0.000239,3]
[422090674,1778565446000,-10000.01,0.000231,2]
[422090679,1778565447000,-8500.01,0.00023793,2]
[422090681,1778565447000,-250.0,0.00023658,2]
[422090680,1778565447000,-250.0,0.000231,2]
[422090685,1778565447000,-10000.01,0.000244,2]
[422090682,1778565447000,-3690.92,0.00023793,2]
[422090683,1778565447000,-513.0,0.00024397,2]
[422090684,1778565447000,-5296.09,0.000244,2]
[422090688,1778565448000,-10000.01,0.000244,2]
[422090687,1778565448000,-10000.01,0.000244,2]
[422090686,1778565448000,-10000.01,0.000244,2]
[422090694,1778565449000,-10000.01,0.000244,2]
[422090693,1778565449000,-4647.1,0.000244,2]
[422090691,1778565449000,-5197.51,0.00023793,30]
[422090692,1778565449000,-155.4,0.00023866,2]
[422090690,1778565449000,-9850.01,0.000244,2]
[422090689,1778565449000,-150.0,0.0002243,3]
[422090695,1778565497000,-10000.01,0.000244,2]
[422090696,1778565497000,173.24,0.0001214,2]
[422090699,1778565497000,-9526.77,0.000244,2]
[422090698,1778565497000,-173.24,0.00023803,2]
[422090697,1778565497000,-300.0,0.00023099,2]
[422090700,1778565498000,291.5,0.0001841,2]
[422090701,1778565498000,291.5,0.00020381,2]
[422090702,1778565498000,291.5,0.00016438,2]
[422090704,1778565498000,-151.0,0.00024052,2]
[422090703,1778565498000,-291.5,0.00022353,2]
[422090708,1778565498000,-151.0,0.00024052,2]
[422090705,1778565498000,-500.0,0.00024052,2]
[422090706,1778565498000,-151.0,0.00024052,2]
[422090707,1778565498000,-532.08476084,0.00024052,2]
[422090709,1778565498000,-151.0,0.00024052,2]
[422090710,1778565498000,-151.0,0.00024052,2]
[422090713,1778565498000,-500.0,0.00024052,2]
[422090712,1778565498000,-151.0,0.00024052,2]
[422090714,1778565498000,-500.0,0.00024052,2]
[422090715,1778565498000,-500.0,0.00024052,2]